fUST/lending_fUST_20251210
["ID","MTS","AMOUNT","RATE_DAILY","PERIOD"]
[398026873,1765302658871,-180.2394759,0.0002,2]
[398026874,1765302658881,-4628.71131395,0.0002,2]
[398026875,1765302658890,-151.0,0.0002,3]
[398026876,1765302658899,-7111.67998874,0.0002,2]
[398026877,1765302658909,-227.11061517,0.0002,2]
[398026878,1765302658919,-684.74548417,0.0002,2]
[398026879,1765302658928,-895.0,0.0002,2]
[398026880,1765302658937,-174.67266347,0.0002,2]
[398026881,1765302658946,-150.0,0.0002,2]
[398026882,1765302658956,-151.0,0.0002,2]
[398026883,1765302658965,-151.0,0.0002,2]
[398026884,1765302658974,-151.0,0.0002,2]
[398026885,1765302658983,-193.207712,0.0002,2]
[398026886,1765302658993,-193.207712,0.0002,2]
[398026887,1765302659002,-193.207712,0.0002,2]
[398026888,1765302659012,-193.207713,0.0002,2]
[398026889,1765302659021,-151.0,0.0002,2]
[398026890,1765302659031,-151.0,0.0002,2]
[398026891,1765302659040,-151.0,0.0002,2]
[398026892,1765302659050,-151.0,0.0002,2]
[398026893,1765302659060,-151.0,0.0002,2]
[398026894,1765302659070,-151.0,0.0002,2]
[398026895,1765302659080,-250.0,0.0002,10]
[398026896,1765302659090,-151.45456969,0.0002,2]
[398026897,1765302659099,-454.36370906,0.00020034,4]
[398026898,1765302659109,-500.0,0.00020039,2]
[398026899,1765302659118,-264.45623502,0.00020058,5]
[398026900,1765302659128,-684.74548417,0.00020072,5]
[398026901,1765302659137,-1250.0,0.00020077,2]
[398026902,1765302659147,-360.47895186,0.0002008,5]
[398026903,1765302659156,-250.0,0.000201,10]
[398026904,1765302659166,-5888.0,0.00020131,2]
[398026905,1765302659176,-1250.0,0.00020132,2]
[398026906,1765302659186,-684.74548417,0.00020144,9]
[398026907,1765302659196,-360.47895186,0.00020159,9]
[398026908,1765302659206,-1500.0,0.00020187,2]
[398026909,1765302659217,-151.0,0.000202,3]
[398026910,1765302659227,-250.0,0.000202,10]
[398026911,1765302659237,-1250.0,0.00020201,2]
[398026912,1765302659246,-684.74548417,0.00020216,13]
[398026913,1765302659257,-288.04783607,0.00020223,4]
[398026914,1765302659267,-360.47895186,0.00020239,13]
[398026915,1765302659277,-860.0,0.00020239,2]
[398026916,1765302659287,-684.74548417,0.00020288,16]
[398026917,1765302659297,-227.11061517,0.00020299,17]
[398026918,1765302659306,-151.0,0.000203,3]
[398026919,1765302659316,-250.0,0.000203,10]
[398026920,1765302659325,-360.47895186,0.00020318,16]
[398026921,1765302659335,-684.74548417,0.00020361,20]
[398026922,1765302659344,-360.47895186,0.00020398,20]
[398026923,1765302659354,-151.0,0.000204,3]
[398026924,1765302659363,-3533.13,0.000204,2]
[398026925,1765302659373,-3319.83,0.000204,2]
[398026926,1765302659385,-250.0,0.000204,10]
[398026927,1765302659395,-170.18441434,0.00020406,23]
[398026928,1765302659404,-1250.0,0.00020417,2]
[398026929,1765302659414,-174.67266347,0.00020418,23]
[398026930,1765302659424,-574.12855637,0.00020429,2]
[398026931,1765302659433,-684.74548417,0.00020433,24]
[398026932,1765302659443,-168.2300853,0.00020461,23]
[398026933,1765302659452,-500.0,0.0002047,2]
[398026934,1765302659464,-500.0,0.0002047,2]
[398026935,1765302659473,-360.47895186,0.00020477,24]
[398026936,1765302659482,-7045.53,0.000205,2]
[398026937,1765302659492,-250.0,0.000205,10]
[398026938,1765302659501,-684.74548417,0.00020505,28]
[398026939,1765302659510,-258.38552,0.00020548,2]
[398026940,1765302659520,-360.47895186,0.00020557,28]
[398026941,1765302659530,-1250.0,0.00020558,2]
[398026942,1765302659540,-684.74548417,0.00020577,31]
[398026943,1765302659549,-227.11061517,0.00020597,32]
[398026944,1765302659559,-151.0,0.000206,3]
[398026945,1765302659569,-2697.12,0.000206,2]
[398026946,1765302659578,-250.0,0.000206,10]
[398026947,1765302659587,-360.47895186,0.00020636,31]
[398026948,1765302659597,-684.74548417,0.00020649,35]
[398026949,1765302659607,-250.0,0.000207,10]
[398026950,1765302659616,-154.26137292,0.00020702,2]
[398026951,1765302659625,-1250.0,0.00020703,2]
[398026952,1765302659635,-1250.0,0.00020709,2]
[398026953,1765302659644,-360.47895186,0.00020716,35]
[398026954,1765302659653,-1250.0,0.00020721,2]
[398026955,1765302659662,-684.74548417,0.00020721,39]
[398026956,1765302659672,-1250.0,0.00020768,2]
[398026957,1765302659681,-960.0,0.00020787,2]
[398026958,1765302659691,-684.74548417,0.00020793,42]
[398026959,1765302659700,-360.47895186,0.00020796,39]
[398026960,1765302659709,-151.0,0.000208,4]
[398026961,1765302659719,-151.0,0.000208,3]
[398026962,1765302659728,-250.0,0.000208,10]
[398026963,1765302659738,-5888.0,0.00020807,2]
[398026964,1765302659747,-1250.0,0.00020811,2]
[398026965,1765302659757,-170.18441434,0.00020812,45]
[398026966,1765302659766,-1250.0,0.00020829,2]
[398026967,1765302659775,-174.67266347,0.00020836,45]
[398026968,1765302659784,-1250.0,0.0002084,2]
[398026969,1765302659793,-171.0,0.00020849,3]
[398026970,1765302659802,-684.74548417,0.00020865,46]
[398026971,1765302659811,-360.47895186,0.00020875,42]
[398026972,1765302659821,-464.87657662,0.00020891,2]
[398026973,1765302659830,-227.11061517,0.00020896,48]
[398026974,1765302659840,-250.0,0.000209,10]
[398026975,1765302659849,-168.2300853,0.00020923,45]
[398026976,1765302659860,-684.74548417,0.00020937,50]
[398026977,1765302659869,-360.47895186,0.00020955,46]
[398026978,1765302659879,-595.37131296,0.00020977,2]
[398026979,1765302659888,-5888.0,0.00020979,2]
[398026980,1765302659897,-250.0,0.00021,10]
[398026981,1765302659906,-684.74548417,0.00021009,54]
[398026982,1765302659916,-360.47895186,0.00021034,50]
[398026983,1765302659926,-684.74548417,0.00021082,57]
[398026984,1765302659936,-500.0,0.000211,5]
[398026985,1765302659945,-401.52,0.000211,4]
[398026986,1765302659955,-250.0,0.000211,10]
[398026987,1765302659964,-360.47895186,0.00021114,54]
[398026988,1765302659974,-215.94994158,0.00021154,56]
[398026989,1765302659983,-684.74548417,0.00021154,61]
[398026990,1765302659992,-360.47895186,0.00021193,57]
[398026991,1765302660002,-227.11061517,0.00021195,63]
[398026992,1765302660011,-151.0,0.000212,4]
[398026993,1765302660022,-151.0,0.000212,3]
[398026994,1765302660032,-151.0,0.000212,4]
[398026995,1765302660041,-170.18441434,0.00021219,66]
[398026996,1765302660051,-684.74548417,0.00021226,65]
[398026997,1765302660062,-176.37082335,0.0002125,11]
[398026998,1765302660072,-174.67266347,0.00021255,66]
[398026999,1765302660082,-1580.358591,0.0002126,5]
[398027000,1765302660092,-360.47895186,0.00021273,61]
[398027001,1765302660101,-1000.0,0.0002128,5]
[398027002,1765302660111,-684.74548417,0.00021298,69]
[398027003,1765302660120,-3533.13,0.000213,2]
[398027004,1765302660130,-3319.83,0.000213,2]
[398027005,1765302660139,-1000.0,0.000213,5]
[398027006,1765302660149,-1000.0,0.0002132,5]
[398027007,1765302660160,-1060.0,0.00021335,2]
[398027008,1765302660169,-1000.0,0.0002134,5]
[398027009,1765302660179,-360.47895186,0.00021353,65]
[398027010,1765302660189,-1000.0,0.0002136,5]
[398027011,1765302660199,-251.92696343,0.00021368,30]
[398027012,1765302660209,-684.74548417,0.0002137,72]
[398027013,1765302660220,-1000.0,0.0002138,5]
[398027014,1765302660231,-168.2300853,0.00021384,66]
[398027015,1765302660241,-1000.0,0.000214,5]
[398027016,1765302660251,-150.0,0.000214,2]
[398027017,1765302660261,-174.67266344,0.00021418,30]
[398027018,1765302660271,-360.47895186,0.00021432,69]
[398027019,1765302660282,-684.74548417,0.00021442,76]
[398027020,1765302660292,-227.11061514,0.00021448,30]
[398027021,1765302660302,-277.24358153,0.00021449,7]
[398027022,1765302660311,-150.0,0.00021449,7]
[398027023,1765302660321,-295.42844248,0.00021468,30]
[398027024,1765302660330,-227.11061517,0.00021494,79]
[398027025,1765302660339,-1035.41095682,0.000215,2]
[398027026,1765302660349,-12806.57057154,0.000215,2]
[398027027,1765302660358,-7045.53,0.000215,2]
[398027028,1765302660368,-2697.12,0.000215,2]
[398027029,1765302660379,-360.47895186,0.00021512,72]
[398027030,1765302660391,-684.74548417,0.00021514,80]
[398027031,1765302660400,-617.40005154,0.00021525,2]
[398027032,1765302660410,-684.74548417,0.00021586,83]
[398027033,1765302660419,-360.47895186,0.00021591,76]
[398027034,1765302660429,-151.0,0.000216,4]
[398027035,1765302660439,-151.0,0.000216,3]
[398027036,1765302660450,-151.0,0.000216,3]
[398027037,1765302660460,-170.18441434,0.00021625,88]
[398027038,1765302660470,-168.23008528,0.00021658,30]
[398027039,1765302660479,-684.74548417,0.00021658,87]
[398027040,1765302660488,-360.47895186,0.00021671,80]
[398027041,1765302660497,-174.67266347,0.00021673,88]
[398027042,1765302660507,-471.3140886,0.00021723,7]
[398027043,1765302660517,-684.74548417,0.0002173,91]
[398027044,1765302660527,-360.47895186,0.0002175,83]
[398027045,1765302660537,-415.0,0.00021779,2]
[398027046,1765302660546,-227.11061517,0.00021792,94]
[398027047,1765302660556,-684.74548417,0.00021803,95]
[398027048,1765302660566,-360.47895186,0.0002183,87]
[398027049,1765302660575,-168.2300853,0.00021846,88]
[398027050,1765302660585,-720.0,0.00021867,10]
[398027051,1765302660595,-684.74548417,0.00021875,98]
[398027052,1765302660604,-1160.0,0.00021883,2]
[398027053,1765302660613,-360.47895186,0.00021909,91]
[398027054,1765302660623,-1000.0,0.00021917,2]
[398027055,1765302660632,-1000.0,0.00021917,2]
[398027056,1765302660642,-1000.0,0.00021917,2]
[398027057,1765302660652,-1000.0,0.00021917,2]
[398027058,1765302660662,-1067.51342859,0.00021917,2]
[398027059,1765302660671,-397.5795005,0.00021918,2]
[398027060,1765302660681,-801.9279438,0.00021918,2]
[398027061,1765302660692,-397.5795005,0.00021918,2]
[398027062,1765302660702,-397.5795005,0.00021918,2]
[398027063,1765302660711,-397.5795005,0.00021918,2]
[398027064,1765302660721,-397.5795005,0.00021918,2]
[398027065,1765302660731,-159.747966,0.00021918,2]
[398027066,1765302660740,-151.0,0.00021918,2]
[398027067,1765302660750,-151.0,0.00021918,2]
[398027068,1765302660759,-151.0,0.00021918,2]
[398027069,1765302660769,-151.0,0.00021918,2]
[398027070,1765302660778,-151.0,0.00021918,2]
[398027071,1765302660787,-151.0,0.00021918,2]
[398027072,1765302660798,-151.0,0.00021918,2]
[398027073,1765302660807,-151.0,0.00021918,2]
[398027074,1765302660817,-151.0,0.00021918,2]
[398027075,1765302660827,-151.0,0.00021918,2]
[398027076,1765302660836,-151.0,0.00021918,2]
[398027077,1765302660845,-151.0,0.00021918,2]
[398027078,1765302660855,-151.0,0.00021918,2]
[398027079,1765302660864,-151.0,0.00021918,2]
[398027080,1765302660874,-151.0,0.00021918,2]
[398027081,1765302660883,-151.0,0.00021918,2]
[398027082,1765302660892,-151.0,0.00021918,2]
[398027083,1765302660901,-151.0,0.00021918,2]
[398027084,1765302660910,-151.0,0.00021918,2]
[398027085,1765302660920,-151.0,0.00021918,2]
[398027086,1765302660929,-151.0,0.00021918,2]
[398027087,1765302660939,-151.0,0.00021918,2]
[398027088,1765302660949,-151.0,0.00021918,2]
[398027089,1765302660958,-151.0,0.00021918,2]
[398027090,1765302660967,-151.0,0.00021918,2]
[398027091,1765302660977,-151.0,0.00021918,2]
[398027092,1765302660987,-151.0,0.00021918,2]
[398027093,1765302660996,-151.0,0.00021918,2]
[398027094,1765302661006,-151.0,0.00021918,2]
[398027095,1765302661015,-151.0,0.00021918,2]
[398027096,1765302661024,-151.0,0.00021918,2]
[398027097,1765302661033,-151.0,0.00021918,2]
[398027098,1765302661043,-151.0,0.00021918,2]
[398027099,1765302661051,-151.0,0.00021918,2]
[398027100,1765302661061,-150.0,0.00021918,2]
[398027101,1765302661070,-152.0,0.00021918,2]
[398027102,1765302661080,-152.0,0.00021918,2]
[398027103,1765302661089,-151.0,0.00021918,2]
[398027104,1765302661099,-152.0,0.00021918,2]
[398027105,1765302661108,-151.0,0.00021918,2]
[398027106,1765302661117,-152.21336467,0.00021918,2]
[398027107,1765302661127,-151.0,0.00021918,2]
[398027108,1765302661136,-152.01654558,0.00021918,2]
[398027109,1765302661146,-151.0,0.00021918,2]
[398027110,1765302661154,-152.0,0.00021918,2]
[398027111,1765302661164,-151.0,0.00021918,2]
[398027112,1765302661173,-152.0,0.00021918,2]
[398027113,1765302661182,-151.0,0.00021918,2]
[398027114,1765302661194,-151.0,0.00021918,2]
[398027115,1765302661203,-151.02010893,0.00021918,2]
[398027116,1765302661212,-151.0,0.00021918,2]
[398027117,1765302661222,-151.0,0.00021918,2]
[398027118,1765302661232,-151.0,0.00021918,2]
[398027119,1765302661241,-151.0,0.00021918,2]
[398027120,1765302661251,-151.0,0.00021918,2]
[398027121,1765302661261,-151.0,0.00021918,2]
[398027122,1765302661271,-151.0,0.00021918,2]
[398027123,1765302661281,-151.0,0.00021918,2]
[398027124,1765302661290,-151.0,0.00021918,2]
[398027125,1765302661299,-151.0,0.00021918,2]
[398027126,1765302661309,-151.0,0.00021918,2]
[398027127,1765302661319,-151.0,0.00021918,2]
[398027128,1765302661328,-151.0,0.00021918,2]
[398027129,1765302661338,-151.0,0.00021918,2]
[398027130,1765302661347,-151.0,0.00021918,2]
[398027131,1765302661356,-151.0,0.00021918,2]
[398027132,1765302661366,-151.0,0.00021918,2]
[398027133,1765302661375,-186.12913573,0.00021918,2]
[398027134,1765302661388,-153.03314879,0.00021918,2]
[398027135,1765302661397,-151.0,0.00021918,2]
[398027136,1765302661406,-151.0,0.00021918,2]
[398027137,1765302661415,-151.0,0.00021918,2]
[398027138,1765302661425,-151.0,0.00021918,2]
[398027139,1765302661435,-151.0,0.00021918,2]
[398027140,1765302661444,-151.0,0.00021918,2]
[398027141,1765302661454,-684.74548417,0.00021947,102]
[398027142,1765302661466,-360.47895186,0.00021989,95]
[398027143,1765302661475,-200.0,0.00021995,30]
[398027144,1765302661484,-200.0,0.00021995,30]
[398027145,1765302661494,-200.0,0.00021995,30]
[398027146,1765302661504,-392.7617405,0.00021997,7]
[398027147,1765302661514,-419.24412022,0.00022,2]
[398027148,1765302661523,-22800.0,0.00022,2]
[398027149,1765302661532,-32882.78,0.00022,2]
[398027150,1765302661541,-684.74548417,0.00022019,106]
[398027151,1765302661551,-360.47895186,0.00022069,98]
[398027152,1765302661560,-640.24385345,0.00022073,2]
[398027153,1765302661570,-684.74548417,0.00022091,110]
[398027154,1765302661580,-360.47895186,0.00022148,102]
[398027155,1765302661590,-3533.13,0.000222,7]
[398027156,1765302661600,-3319.83,0.000222,7]
[398027157,1765302661610,-360.47895186,0.00022228,106]
[398027158,1765302661620,-180.2394759,0.00022307,110]
[398027159,1765302661629,-215.94994158,0.00022307,110]
[398027160,1765302661639,-475.0,0.00022371,7]
[398027161,1765302661648,-475.0,0.00022371,7]
[398027162,1765302661658,-475.0,0.00022371,7]
[398027163,1765302661828,-2697.12,0.000224,14]
[398027164,1765302661839,-150.0,0.000224,2]
[398027165,1765302661848,-314.2093924,0.00022408,7]
[398027166,1765302661858,-1260.0,0.00022431,2]
[398027167,1765302661867,-176.37082335,0.00022442,16]
[398027168,1765302661877,-294.56591996,0.00022465,2]
[398027169,1765302661887,-600.0,0.00022465,2]
[398027170,1765302661897,-600.0,0.00022465,2]
[398027171,1765302661907,-208.75466603,0.00022465,2]
[398027172,1765302661916,-300.0,0.00022466,2]
[398027173,1765302661926,-1028.93352988,0.000225,2]
[398027174,1765302661935,-7045.53,0.000225,2]
[398027175,1765302661945,-663.93287602,0.00022621,2]
[398027176,1765302661956,-235.6570443,0.00022819,7]
[398027177,1765302661966,-397.5795005,0.00022877,2]
[398027178,1765302661975,-397.5795005,0.00022877,2]
[398027179,1765302661985,-397.5795005,0.00022877,2]
[398027180,1765302661995,-397.5795005,0.00022877,2]
[398027181,1765302662004,-795.159001,0.00022877,2]
[398027182,1765302662013,-795.159001,0.00022877,2]
[398027183,1765302662022,-397.5795005,0.00022877,2]
[398027184,1765302662031,-501.90214467,0.00022891,2]
[398027185,1765302662041,-5000.0,0.00022948,2]
[398027186,1765302662051,-1360.0,0.00022979,2]
[398027187,1765302662061,-416.0,0.00023,7]
[398027188,1765302662071,-450.0,0.00023014,2]
[398027189,1765302662080,-3533.13,0.000231,7]
[398027190,1765302662090,-3319.83,0.000231,7]
[398027191,1765302662100,-688.49839244,0.00023169,2]
[398027192,1765302662110,-416.0,0.00023288,7]
[398027193,1765302662120,-2697.12,0.000234,14]
[398027194,1765302662130,-157.1046962,0.00023504,7]
[398027195,1765302662140,-1460.0,0.00023527,2]
[398027196,1765302662149,-600.0,0.00023562,2]
[398027197,1765302662159,-264.45623502,0.00023633,22]
[398027198,1765302662168,-4264.65894536,0.000237,14]
[398027199,1765302662178,-2356.61862347,0.000237,30]
[398027200,1765302662189,-7045.53,0.000237,2]
[398027201,1765302662201,-13916.32,0.000237,3]
[398027202,1765302662211,-713.97283296,0.00023717,2]
[398027203,1765302662221,-248.0055005,0.00023836,2]
[398027204,1765302662231,-302.0621335,0.00023836,2]
[398027205,1765302662240,-165.325733,0.00023836,2]
[398027206,1765302662251,-597.0407023,0.00023836,2]
[398027207,1765302662261,-597.0407023,0.00023836,2]
[398027208,1765302662271,-1729.6891282,0.00024,2]
[398027209,1765302662282,-464.09382157,0.00024,2]
[398027210,1765302662292,-19400.0,0.00024,2]
[398027211,1765302662302,-32882.78,0.00024,2]
[398027212,1765302662312,-500.0,0.00024,120]
[398027213,1765302662321,-864.0,0.00024054,10]
[398027214,1765302662331,-1560.0,0.00024075,2]
[398027215,1765302662340,-3533.13,0.000241,7]
[398027216,1765302662350,-3319.83,0.000241,7]
[398027217,1765302662361,-750.0,0.0002411,2]
[398027218,1765302662372,-249019.16656589,0.00024142,2]
[398027219,1765302662745,-1959.42071875,0.00024142,2]
[398027220,1765302662843,-478.0,0.00016301,2]
[398027221,1765302662853,-478.0,0.00016438,2]
[398027222,1765302662862,-223.440955,0.000178,2]
[398027223,1765302662873,-223.440955,0.00018157,2]
[398027224,1765302662883,-223.440955,0.00019178,2]
[398027225,1765302662893,-223.440955,0.00019336,2]
[398027226,1765302662903,-223.440955,0.0001943,2]
[398027227,1765302662913,-284.52197461,0.000214,2]
[398027228,1765302662935,-715.47802539,0.000214,2]
[398027229,1765302662947,-63.30110617,0.00024142,2]
[398027230,1765302663278,153.75,6.5e-05,2]
[398027231,1765302725335,153.74,6.5e-05,2]
[398027232,1765302786571,153.74,6.5e-05,2]
[398027233,1765302846238,153.75,6.5e-05,2]
[398027234,1765302906056,153.74,6.5e-05,2]
[398027235,1765302964757,153.75,6.5e-05,2]
[398027237,1765303024630,153.74,6.5e-05,2]
[398027240,1765303084461,153.75,6.5e-05,2]
[398027243,1765303144549,153.74,6.5e-05,2]
[398027282,1765303832534,-539.0,8.5e-05,2]
[398027283,1765303832544,-170.17343669,8.875e-05,2]
[398027284,1765303832554,-300.0,9.999e-05,2]
[398027285,1765303832563,-226.0,9.999e-05,2]
[398027286,1765303832572,-323.9521118,0.0001,2]
[398027313,1765303838113,-5502.1121329,0.0001,2]
[398027315,1765303838167,-4173.9357553,0.0001,2]
[398027316,1765303838176,-73.07068238,0.00010199,2]
[398027317,1765303838188,-226.92931762,0.00010199,2]
[398027318,1765303838198,-300.0,0.00010199,2]
[398027319,1765303838208,-249.75877033,0.00010199,2]
[398027320,1765303838220,-50.24122967,0.00010199,2]
[398027321,1765303838230,-300.0,0.00010199,2]
[398027322,1765303838239,-300.0,0.00010199,2]
[398027323,1765303838248,-200.80465529,0.00010875,2]
[398027324,1765303838258,-252.57809287,0.00010992,2]
[398027325,1765303838268,-12541.5259004,0.00010999,2]
[398027326,1765303838277,-420.0,0.00010999,2]
[398027327,1765303838287,-844.08867794,0.00011499,2]
[398027328,1765303838296,-261.8094485,0.00011803,2]
[398027329,1765303838305,-251.0,0.00012099,2]
[398027330,1765303838315,-237.22702948,0.00012868,2]
[398027331,1765303838325,-231.4358739,0.00012875,2]
[398027332,1765303838335,-844.08867794,0.00012984,2]
[398027333,1765303838344,-765.7932451,0.00013593,2]
[398027334,1765303838353,-1500.0,0.00013699,2]
[398027335,1765303838363,-36.5729707,0.00013699,2]
[398027336,1765303838375,-963.4270293,0.00013699,2]
[398027337,1765303838384,-186.0,0.00013781,3]
[398027338,1765303838394,-160.0,0.00013922,2]
[398027339,1765303838404,-2695.8191555,0.00014313,2]
[398027340,1765303838414,-844.08867794,0.00014469,2]
[398027341,1765303838423,-260.0,0.0001447,2]
[398027342,1765303838433,-347.30356795,0.00014625,2]
[398027343,1765303838442,-262.0670925,0.00014875,2]
[398027344,1765303838452,-360.0,0.00015018,2]
[398027345,1765303838461,-506.71504591,0.00015271,2]
[398027353,1765303840549,-250.0,0.000119,2]
[398027354,1765303840558,-5375.99742639,0.00015271,2]
[398027355,1765303840568,-460.0,0.00015566,2]
[398027356,1765303840577,-844.08867794,0.00015955,2]
[398027357,1765303840587,-560.0,0.00016114,2]
[398027358,1765303840596,-184.11071401,0.00016243,2]
[398027359,1765303840605,-415.0,0.00016244,2]
[398027360,1765303840615,-660.0,0.00016662,2]
[398027361,1765303840625,-600.0,0.00016665,2]
[398027362,1765303840634,-292.6983111,0.00016875,2]
[398027363,1765303840643,-760.0,0.0001721,2]
[398027364,1765303840653,-844.93276661,0.0001744,2]
[398027365,1765303840662,-860.0,0.00017758,2]
[398027366,1765303840671,-960.0,0.00018306,2]
[398027367,1765303840681,-720.0,0.00018331,2]
[398027368,1765303840690,-1060.0,0.00018854,2]
[398027369,1765303840699,-323.32952971,0.00018875,2]
[398027370,1765303840709,-1409.27678214,0.0001916,2]
[398027372,1765303840719,-500.0,0.00019178,2]
[398027373,1765303840729,-881.82924777,0.0001919,2]
[398027374,1765303840738,-415.0,0.00019244,2]
[398027375,1765303840748,-6390.89386933,0.0001926,2]
[398027376,1765303840758,-155.0,0.0001926,3]
[398027377,1765303840770,-881.82924777,0.000193,5]
[398027378,1765303840779,-500.0,0.000193,5]
[398027379,1765303840789,-1160.0,0.00019402,2]
[398027380,1765303840799,-881.82924777,0.00019409,9]
[398027381,1765303840811,-500.0,0.0001943,2]
[398027382,1765303840820,-475.0,0.00019511,2]
[398027383,1765303840830,-881.82924777,0.00019519,13]
[398027384,1765303840840,-500.0,0.00019567,2]
[398027385,1765303840852,-881.82924777,0.00019628,16]
[398027386,1765303840862,-802.1692279,0.00019691,5]
[398027387,1765303840872,-500.0,0.00019704,2]
[398027388,1765303840882,-227.6579267,0.00019738,20]
[398027422,1765303846124,-300.0,0.00010402,2]
[398027424,1765303846133,-300.0,0.00010402,2]
[398027426,1765303846142,-300.0,0.00010402,2]
[398027428,1765303846151,-300.0,0.00010402,2]
[398027430,1765303846160,-300.0,0.00010402,2]
[398027432,1765303846169,-300.0,0.00010402,2]
[398027434,1765303846178,-300.0,0.00010402,2]
[398027435,1765303846188,-300.0,0.00010402,2]
[398027437,1765303846197,-300.0,0.00010402,2]
[398027439,1765303846207,-300.0,0.00010402,2]
[398027441,1765303846216,-300.0,0.00010402,2]
[398027443,1765303846226,-654.17132107,0.00019738,20]
[398027445,1765303846235,-500.0,0.0001981,2]
[398027447,1765303846244,-500.0,0.0001981,2]
[398027449,1765303846253,-881.82924777,0.00019848,24]
[398027451,1765303846262,-503.86672716,0.00019947,2]
[398027453,1765303846272,-500.0,0.00019947,2]
[398027455,1765303846281,-1260.0,0.0001995,2]
[398027457,1765303846290,-881.82924777,0.00019957,28]
[398027459,1765303846299,-340.79414689,0.0002,2]
[398027461,1765303846309,-245.09278239,0.0002,2]
[398027464,1765303846318,-279.74097766,0.0002,2]
[398027466,1765303846327,-151.4697106,0.0002,2]
[398027468,1765303846336,-881.82924777,0.00020067,31]
[398027470,1765303846346,-489.2892959,0.00020084,2]
[398027494,1765303862459,155.85,6.5e-05,2]
[398027495,1765303926480,156.26,6.5e-05,2]
[398027496,1765303986966,156.26,6.5e-05,2]
[398027497,1765304047721,156.27,6.5e-05,2]
[398027498,1765304051815,156.21,6.523e-05,2]
[398027502,1765304108231,156.27,6.5e-05,2]
[398027503,1765304166148,156.27,6.5e-05,2]
[398027505,1765304226808,156.27,6.5e-05,2]
[398027508,1765304286228,156.27,6.5e-05,2]
[398027513,1765304349222,156.27,6.5e-05,2]
[398027514,1765304405319,156.27,6.5e-05,2]
[398027515,1765304464950,156.27,6.5e-05,2]
[398027516,1765304527932,156.27,6.5e-05,2]
[398027517,1765304584724,156.27,6.5e-05,2]
[398027518,1765304652276,156.27,6.5e-05,2]
[398027558,1765305032324,-520.0,7.051e-05,2]
[398027559,1765305032334,-164.42331695,7.051e-05,2]
[398027560,1765305032343,-150.0,7.103e-05,2]
[398027561,1765305032353,-132.73588305,7.295e-05,2]
[398027592,1765305038331,-167.26411695,7.295e-05,2]
[398027593,1765305038342,-300.0,7.295e-05,2]
[398027594,1765305038352,-300.0,7.295e-05,2]
[398027595,1765305038362,-300.0,7.295e-05,2]
[398027596,1765305038372,-746.42671086,7.295e-05,2]
[398027597,1765305038386,-453.57328914,7.295e-05,2]
[398027598,1765305038396,-213.50991285,7.296e-05,2]
[398027599,1765305038441,-2132.41304471,7.296e-05,2]
[398027612,1765305041056,-9976.11386074,7.296e-05,2]
[398027613,1765305041066,-300.0,7.441e-05,2]
[398027614,1765305041075,-300.0,7.441e-05,2]
[398027615,1765305041084,-300.0,7.441e-05,2]
[398027616,1765305041094,-300.0,7.441e-05,2]
[398027617,1765305041103,-300.0,7.441e-05,2]
[398027618,1765305041112,-300.0,7.441e-05,2]
[398027619,1765305041121,-300.0,7.441e-05,2]
[398027620,1765305041130,-300.0,7.441e-05,2]
[398027621,1765305041139,-300.0,7.441e-05,2]